[Event "*** MasterClass Titled Tuesday Blitz"]
[Site "Chess.com"]
[Date "2017.12.12"]
[Round "6"]
[White "xamax2000"]
[Black "benhal"]
[Result "1-0"]
[WhiteElo "2279"]
[BlackElo "2271"]
[TimeControl "180+2"]
[EndTime "14:21:47 PST"]
[Termination "xamax2000 won by resignation"]

1. e4 {[%clk 0:03:01.9]} 1... g6 {[%clk 0:03:00.6]} 2. d4 {[%clk 0:03:01]} 2...
Bg7 {[%clk 0:03:02.5]} 3. Nc3 {[%clk 0:03:02.5]} 3... c6 {[%clk 0:03:02.7]} 4.
f4 {[%clk 0:03:02.1]} 4... d5 {[%clk 0:03:02.7]} 5. e5 {[%clk 0:03:02.1]} 5...
Nh6 {[%clk 0:03:01.1]} 6. Nf3 {[%clk 0:02:58.7]} 6... O-O {[%clk 0:03:01.2]} 7.
Be2 {[%clk 0:02:50.7]} 7... f6 {[%clk 0:03:02.3]} 8. O-O {[%clk 0:02:48.9]} 8...
Bf5 {[%clk 0:02:44.9]} 9. h3 {[%clk 0:02:40.6]} 9... Qb6 {[%clk 0:02:42.7]} 10.
g4 {[%clk 0:02:34]} 10... Be6 {[%clk 0:02:42.4]} 11. Na4 {[%clk 0:02:25.8]}
11... Qc7 {[%clk 0:02:40.6]} 12. Nc5 {[%clk 0:02:13.6]} 12... Bc8 {[%clk
0:02:40.6]} 13. Qe1 {[%clk 0:02:10.3]} 13... b6 {[%clk 0:02:41.5]} 14. Nd3
{[%clk 0:02:09.4]} 14... c5 {[%clk 0:02:42.4]} 15. f5 {[%clk 0:02:05.1]} 15...
gxf5 {[%clk 0:02:39.5]} 16. Qh4 {[%clk 0:02:01.8]} 16... Nf7 {[%clk 0:02:34]}
17. gxf5 {[%clk 0:01:55.1]} 17... Bxf5 {[%clk 0:02:34.2]} 18. Nf4 {[%clk
0:01:51.5]} 18... fxe5 {[%clk 0:02:33.5]} 19. Nxd5 {[%clk 0:01:42.9]} 19... Qd7
{[%clk 0:02:24.9]} 20. Nxe7+ {[%clk 0:01:39.1]} 20... Kh8 {[%clk 0:02:25.9]} 21.
Nxf5 {[%clk 0:01:41]} 21... Qxf5 {[%clk 0:02:26.2]} 22. Nxe5 {[%clk 0:01:24.7]}
22... Qe6 {[%clk 0:02:24]} 23. Bc4 {[%clk 0:01:12]} 23... Qd6 {[%clk 0:02:11.7]}
24. Rxf7 {[%clk 0:01:09.9]} 24... Nc6 {[%clk 0:02:09.5]} 25. Rxg7 {[%clk
0:00:44.2]} 25... Kxg7 {[%clk 0:02:03.1]} 26. Qg3+ {[%clk 0:00:44.5]} 26... Kh8
{[%clk 0:02:03]} 27. Nf7+ {[%clk 0:00:44.7]} 27... Rxf7 {[%clk 0:02:03.4]} 28.
Qxd6 {[%clk 0:00:45.7]} 28... Rg7+ {[%clk 0:01:55.3]} 29. Kh1 {[%clk 0:00:45.2]}
29... Nxd4 {[%clk 0:01:57.2]} 30. Bh6 {[%clk 0:00:43.7]} 30... Re8 {[%clk
0:01:38.5]} 31. Bxg7+ {[%clk 0:00:43.1]} 31... Kxg7 {[%clk 0:01:39]} 32. Rg1+
{[%clk 0:00:45]} 1-0

[Event "*** MasterClass Titled Tuesday Blitz"]
[Site "Chess.com"]
[Date "2017.12.12"]
[Round "6"]
[White "gammagramma"]
[Black "GMKrikor"]
[Result "1-0"]
[WhiteElo "2474"]
[BlackElo "2642"]
[TimeControl "180+2"]
[EndTime "14:21:51 PST"]
[Termination "gammagramma won by resignation"]

1. d4 {[%clk 0:02:58.7]} 1... Nf6 {[%clk 0:03:00.7]} 2. Bf4 {[%clk 0:02:59.9]}
2... d5 {[%clk 0:02:59.6]} 3. e3 {[%clk 0:03:00.7]} 3... c5 {[%clk 0:03:00.7]}
4. c3 {[%clk 0:03:02]} 4... Nc6 {[%clk 0:03:02]} 5. Nd2 {[%clk 0:03:03.3]} 5...
e6 {[%clk 0:03:01.2]} 6. Ngf3 {[%clk 0:03:02.5]} 6... Nh5 {[%clk 0:03:01.7]} 7.
Be5 {[%clk 0:02:59.6]} 7... f6 {[%clk 0:02:52.1]} 8. Bg3 {[%clk 0:02:49.6]} 8...
Qb6 {[%clk 0:02:52.4]} 9. Qc2 {[%clk 0:02:49.7]} 9... Bd7 {[%clk 0:02:26.2]} 10.
Bd3 {[%clk 0:02:49.3]} 10... g6 {[%clk 0:02:19.6]} 11. Bh4 {[%clk 0:02:46.1]}
11... Kf7 {[%clk 0:01:58.4]} 12. g4 {[%clk 0:02:45]} 12... Ng7 {[%clk
0:01:59.6]} 13. g5 {[%clk 0:02:42.9]} 13... f5 {[%clk 0:01:56]} 14. Bg3 {[%clk
0:02:41.8]} 14... Rc8 {[%clk 0:01:34.9]} 15. Ne5+ {[%clk 0:02:38.2]} 15... Nxe5
{[%clk 0:01:34.3]} 16. Bxe5 {[%clk 0:02:40.1]} 16... Be7 {[%clk 0:01:26.8]} 17.
Nf3 {[%clk 0:02:40.2]} 17... h6 {[%clk 0:01:27.5]} 18. gxh6 {[%clk 0:02:29.7]}
18... Rxh6 {[%clk 0:01:27.7]} 19. O-O-O {[%clk 0:02:30.9]} 19... cxd4 {[%clk
0:01:09.9]} 20. Bxd4 {[%clk 0:02:20.3]} 20... Qc7 {[%clk 0:01:00.8]} 21. Rdg1
{[%clk 0:02:19.3]} 21... Bf6 {[%clk 0:00:56.6]} 22. Qb3 {[%clk 0:02:00.1]} 22...
Rh5 {[%clk 0:00:29.4]} 23. h4 {[%clk 0:01:58.9]} 23... a5 {[%clk 0:00:27.5]} 24.
Be2 {[%clk 0:01:56.4]} 24... a4 {[%clk 0:00:25.4]} 25. Qd1 {[%clk 0:01:49.1]}
25... e5 {[%clk 0:00:26]} 26. Bxe5 {[%clk 0:01:45.4]} 26... Bxe5 {[%clk
0:00:27.5]} 27. Qxd5+ {[%clk 0:01:45.4]} 27... Kf6 {[%clk 0:00:12.8]} 28. Nxe5
{[%clk 0:01:45.9]} 1-0

[Event "*** MasterClass Titled Tuesday Blitz"]
[Site "Chess.com"]
[Date "2017.12.12"]
[Round "6"]
[White "mazetofonias"]
[Black "Annawel"]
[Result "0-1"]
[WhiteElo "2468"]
[BlackElo "2736"]
[TimeControl "180+2"]
[EndTime "14:22:07 PST"]
[Termination "Annawel won by resignation"]

1. e4 {[%clk 0:03:01.9]} 1... e5 {[%clk 0:03:00.9]} 2. Nf3 {[%clk 0:03:03]} 2...
d6 {[%clk 0:03:02.2]} 3. d4 {[%clk 0:03:03.1]} 3... exd4 {[%clk 0:03:04.1]} 4.
Nxd4 {[%clk 0:03:05]} 4... Nf6 {[%clk 0:03:05.6]} 5. Nc3 {[%clk 0:03:06.3]} 5...
Be7 {[%clk 0:03:07.2]} 6. Bd3 {[%clk 0:03:06.6]} 6... O-O {[%clk 0:03:08.4]} 7.
O-O {[%clk 0:03:07.6]} 7... Re8 {[%clk 0:03:09]} 8. Re1 {[%clk 0:03:07.8]} 8...
a6 {[%clk 0:03:09.6]} 9. a4 {[%clk 0:03:07.7]} 9... c5 {[%clk 0:03:08.8]} 10.
Nb3 {[%clk 0:03:00.3]} 10... Be6 {[%clk 0:03:08.1]} 11. Nd2 {[%clk 0:03:00.7]}
11... Nc6 {[%clk 0:03:08.2]} 12. Nc4 {[%clk 0:03:00.7]} 12... Rb8 {[%clk
0:03:04.8]} 13. Ne3 {[%clk 0:02:24.3]} 13... Nb4 {[%clk 0:03:03.2]} 14. Bf1
{[%clk 0:02:24.5]} 14... Bf8 {[%clk 0:03:00.4]} 15. a5 {[%clk 0:02:18.7]} 15...
Nc6 {[%clk 0:02:57.6]} 16. Ned5 {[%clk 0:02:19.7]} 16... Bxd5 {[%clk 0:02:57.5]}
17. exd5 {[%clk 0:02:08]} 17... Rxe1 {[%clk 0:02:59.4]} 18. Qxe1 {[%clk
0:02:09.3]} 18... Nb4 {[%clk 0:03:01.1]} 19. Qd1 {[%clk 0:02:10]} 19... Qd7
{[%clk 0:02:59.8]} 20. Bc4 {[%clk 0:02:06.6]} 20... Qf5 {[%clk 0:02:52.9]} 21.
Bd3 {[%clk 0:02:01.4]} 21... Nxd3 {[%clk 0:02:52.1]} 22. Qxd3 {[%clk 0:02:03.3]}
22... Qxd3 {[%clk 0:02:52.4]} 23. cxd3 {[%clk 0:02:05.2]} 23... h6 {[%clk
0:02:33.6]} 24. Kf1 {[%clk 0:02:00.8]} 24... g5 {[%clk 0:02:30.5]} 25. Ra2
{[%clk 0:02:00.6]} 25... Kh7 {[%clk 0:02:29.5]} 26. h3 {[%clk 0:01:54.8]} 26...
Kg6 {[%clk 0:02:29]} 27. g4 {[%clk 0:01:53.4]} 27... Nd7 {[%clk 0:02:29.1]} 28.
Be3 {[%clk 0:01:46.3]} 28... f5 {[%clk 0:02:25.9]} 29. f3 {[%clk 0:01:46.9]}
29... Bg7 {[%clk 0:02:18.9]} 30. Na4 {[%clk 0:01:30.4]} 30... Ne5 {[%clk
0:02:07.5]} 31. gxf5+ {[%clk 0:01:30]} 31... Kxf5 {[%clk 0:02:08.6]} 32. Ke2
{[%clk 0:01:28.9]} 32... Re8 {[%clk 0:02:09.4]} 33. Nb6 {[%clk 0:01:27.2]} 33...
Ng6 {[%clk 0:01:51.3]} 34. Kf2 {[%clk 0:01:26.5]} 34... Nf4 {[%clk 0:01:46.7]}
35. Bxf4 {[%clk 0:01:13.3]} 35... Bd4+ {[%clk 0:01:47.3]} 36. Kg2 {[%clk
0:01:11.5]} 36... Kxf4 {[%clk 0:01:46.9]} 37. b3 {[%clk 0:01:12.7]} 37... Re3
{[%clk 0:01:42]} 38. Nc4 {[%clk 0:01:13.4]} 38... Rxf3 {[%clk 0:01:41.1]} 39.
Nxd6 {[%clk 0:01:13.2]} 39... Rg3+ {[%clk 0:01:39.6]} 40. Kh2 {[%clk 0:01:13.7]}
40... Rxd3 {[%clk 0:01:40.5]} 41. Nxb7 {[%clk 0:01:14.1]} 41... Kf3 {[%clk
0:01:40.5]} 42. d6 {[%clk 0:01:14.5]} 42... Be5+ {[%clk 0:01:41.1]} 0-1

[Event "*** MasterClass Titled Tuesday Blitz"]
[Site "Chess.com"]
[Date "2017.12.12"]
[Round "6"]
[White "grzechu96"]
[Black "bascheyaro"]
[Result "0-1"]
[WhiteElo "2453"]
[BlackElo "2635"]
[TimeControl "180+2"]
[EndTime "14:22:17 PST"]
[Termination "bascheyaro won by resignation"]

1. e4 {[%clk 0:03:01.9]} 1... e6 {[%clk 0:03:01.2]} 2. d4 {[%clk 0:03:02.7]}
2... d5 {[%clk 0:03:02.6]} 3. Nc3 {[%clk 0:03:04.1]} 3... Bb4 {[%clk 0:03:03.4]}
4. e5 {[%clk 0:03:05.3]} 4... Ne7 {[%clk 0:03:04.7]} 5. a3 {[%clk 0:03:06.1]}
5... Bxc3+ {[%clk 0:03:06.1]} 6. bxc3 {[%clk 0:03:08]} 6... b6 {[%clk 0:03:08]}
7. Qg4 {[%clk 0:03:02.7]} 7... O-O {[%clk 0:03:09]} 8. Bg5 {[%clk 0:02:48.9]}
8... Qe8 {[%clk 0:03:09.3]} 9. Bd3 {[%clk 0:02:02.2]} 9... Nf5 {[%clk
0:03:10.2]} 10. Nf3 {[%clk 0:01:27.3]} 10... Kh8 {[%clk 0:03:09.6]} 11. O-O
{[%clk 0:01:25.5]} 11... Ba6 {[%clk 0:03:05.8]} 12. Bxf5 {[%clk 0:00:47.4]}
12... exf5 {[%clk 0:03:05.9]} 13. Qxf5 {[%clk 0:00:49.1]} 13... Bxf1 {[%clk
0:03:07.1]} 14. Rxf1 {[%clk 0:00:50.5]} 14... Qe6 {[%clk 0:03:07.9]} 15. Qf4
{[%clk 0:00:50.9]} 15... Nd7 {[%clk 0:03:06.3]} 16. Bh4 {[%clk 0:00:52.2]} 16...
h6 {[%clk 0:03:07.5]} 17. Qd2 {[%clk 0:00:51.1]} 17... Rac8 {[%clk 0:03:00]} 18.
Ne1 {[%clk 0:00:49.6]} 18... c5 {[%clk 0:02:56.7]} 19. f4 {[%clk 0:00:50.8]}
19... cxd4 {[%clk 0:02:58.1]} 20. cxd4 {[%clk 0:00:51.8]} 20... f5 {[%clk
0:02:57.9]} 21. exf6 {[%clk 0:00:50.4]} 21... Nxf6 {[%clk 0:02:58.8]} 22. Bxf6
{[%clk 0:00:51.3]} 22... Rxf6 {[%clk 0:02:58.2]} 23. Nd3 {[%clk 0:00:52.8]}
23... Qe4 {[%clk 0:02:57]} 24. c3 {[%clk 0:00:53.7]} 24... Rfc6 {[%clk
0:02:52.4]} 25. Re1 {[%clk 0:00:53.7]} 25... Qf5 {[%clk 0:02:53.5]} 26. Re5
{[%clk 0:00:53.4]} 26... Qf6 {[%clk 0:02:52.2]} 27. Rxd5 {[%clk 0:00:47.9]}
27... Rxc3 {[%clk 0:02:53.3]} 28. h3 {[%clk 0:00:47.5]} 28... Rxa3 {[%clk
0:02:47.7]} 29. Ne5 {[%clk 0:00:46.5]} 29... Qf5 {[%clk 0:02:30.9]} 30. Rd7
{[%clk 0:00:37.9]} 30... Qb1+ {[%clk 0:01:59.7]} 31. Kh2 {[%clk 0:00:38.3]}
31... Rc2 {[%clk 0:02:01.3]} 32. Ng6+ {[%clk 0:00:16.8]} 32... Kh7 {[%clk
0:02:02.5]} 33. f5 {[%clk 0:00:08]} 33... Rxd2 {[%clk 0:02:01.7]} 34. Rd8 {[%clk
0:00:09.5]} 34... Rxg2+ {[%clk 0:02:02.6]} 35. Kxg2 {[%clk 0:00:10.4]} 35...
Qc2+ {[%clk 0:02:03.2]} 0-1

[Event "*** MasterClass Titled Tuesday Blitz"]
[Site "Chess.com"]
[Date "2017.12.12"]
[Round "6"]
[White "SenseiJulio"]
[Black "BilodeauA"]
[Result "1-0"]
[WhiteElo "2546"]
[BlackElo "2736"]
[TimeControl "180+2"]
[EndTime "14:22:23 PST"]
[Termination "SenseiJulio won by checkmate"]

1. Nf3 {[%clk 0:03:01.9]} 1... d5 {[%clk 0:02:58.1]} 2. e3 {[%clk 0:02:59]} 2...
Bg4 {[%clk 0:02:56.4]} 3. c4 {[%clk 0:02:53.3]} 3... dxc4 {[%clk 0:02:58.3]} 4.
Bxc4 {[%clk 0:02:51.6]} 4... e6 {[%clk 0:02:59.5]} 5. Qb3 {[%clk 0:02:44.2]}
5... Bxf3 {[%clk 0:02:59.7]} 6. gxf3 {[%clk 0:02:43.3]} 6... Qc8 {[%clk
0:03:01.1]} 7. Nc3 {[%clk 0:02:33.1]} 7... Nd7 {[%clk 0:03:02.4]} 8. f4 {[%clk
0:02:33.6]} 8... Ne7 {[%clk 0:03:03.4]} 9. d4 {[%clk 0:02:25.9]} 9... Nf5 {[%clk
0:03:03.9]} 10. d5 {[%clk 0:02:05.8]} 10... Nc5 {[%clk 0:03:00.5]} 11. Qc2
{[%clk 0:01:58.2]} 11... exd5 {[%clk 0:02:57.6]} 12. Nxd5 {[%clk 0:01:46.2]}
12... c6 {[%clk 0:02:57.9]} 13. Nc7+ {[%clk 0:01:17.1]} 13... Qxc7 {[%clk
0:02:58.7]} 14. Qxf5 {[%clk 0:01:18.7]} 14... Bd6 {[%clk 0:02:49.9]} 15. Bd2
{[%clk 0:01:15.8]} 15... O-O {[%clk 0:02:50.6]} 16. Rg1 {[%clk 0:01:13.7]} 16...
Rfe8 {[%clk 0:02:09.2]} 17. Bc3 {[%clk 0:00:30.5]} 17... Ne6 {[%clk 0:02:09]}
18. O-O-O {[%clk 0:00:19.6]} 18... Bf8 {[%clk 0:02:09.9]} 19. Rg3 {[%clk
0:00:15.2]} 19... b5 {[%clk 0:01:53.1]} 20. Bb3 {[%clk 0:00:15.7]} 20... b4
{[%clk 0:01:52.4]} 21. Be5 {[%clk 0:00:16.2]} 21... Qe7 {[%clk 0:01:53.4]} 22.
Rdg1 {[%clk 0:00:15.2]} 22... g6 {[%clk 0:01:49]} 23. Rxg6+ {[%clk 0:00:14.8]}
23... hxg6 {[%clk 0:01:10.7]} 24. Rxg6+ {[%clk 0:00:16.7]} 24... fxg6 {[%clk
0:01:11.8]} 25. Qxg6+ {[%clk 0:00:17.6]} 25... Bg7 {[%clk 0:01:13]} 26. Bxe6+
{[%clk 0:00:19.1]} 26... Kf8 {[%clk 0:01:14.3]} 27. Bd6 {[%clk 0:00:20.7]} 27...
Rad8 {[%clk 0:01:01.7]} 28. Qf7# {[%clk 0:00:21.5]} 1-0

[Event "*** MasterClass Titled Tuesday Blitz"]
[Site "Chess.com"]
[Date "2017.12.12"]
[Round "6"]
[White "juniortay"]
[Black "evgenysharapov"]
[Result "0-1"]
[WhiteElo "2313"]
[BlackElo "2325"]
[TimeControl "180+2"]
[EndTime "14:22:32 PST"]
[Termination "evgenysharapov won on time"]

1. e4 {[%clk 0:03:01.9]} 1... c5 {[%clk 0:03:00.2]} 2. Nc3 {[%clk 0:03:01.5]}
2... Nc6 {[%clk 0:03:00.6]} 3. Bb5 {[%clk 0:03:02.1]} 3... Nd4 {[%clk
0:02:58.8]} 4. Bc4 {[%clk 0:03:02.5]} 4... e6 {[%clk 0:02:59.4]} 5. Nge2 {[%clk
0:03:02.1]} 5... Nf6 {[%clk 0:02:59.8]} 6. O-O {[%clk 0:03:00]} 6... a6 {[%clk
0:02:58.9]} 7. a4 {[%clk 0:02:59.9]} 7... d5 {[%clk 0:02:57.4]} 8. exd5 {[%clk
0:02:53.4]} 8... exd5 {[%clk 0:02:57.8]} 9. Nxd5 {[%clk 0:02:19.3]} 9... Nxd5
{[%clk 0:02:57]} 10. Nxd4 {[%clk 0:02:13.9]} 10... cxd4 {[%clk 0:02:56.3]} 11.
Qh5 {[%clk 0:01:53.7]} 11... Be6 {[%clk 0:02:53.6]} 12. Re1 {[%clk 0:01:51.4]}
12... Be7 {[%clk 0:02:53.9]} 13. Rxe6 {[%clk 0:01:36.5]} 13... Nf4 {[%clk
0:02:53.5]} 14. Rxe7+ {[%clk 0:00:17.8]} 14... Qxe7 {[%clk 0:02:52.2]} 15. Qf3
{[%clk 0:00:19.4]} 15... Ng6 {[%clk 0:02:40.6]} 16. b3 {[%clk 0:00:14.8]} 16...
Ne5 {[%clk 0:02:33.8]} 17. Qd1 {[%clk 0:00:14.2]} 17... Nxc4 {[%clk 0:02:30.8]}
18. bxc4 {[%clk 0:00:16.1]} 18... f6 {[%clk 0:02:02.3]} 19. Ba3 {[%clk
0:00:15.6]} 19... Qd7 {[%clk 0:02:02.4]} 20. d3 {[%clk 0:00:15.8]} 20... Kf7
{[%clk 0:02:01.6]} 21. Rb1 {[%clk 0:00:13.1]} 21... Rhe8 {[%clk 0:01:54.5]} 22.
g3 {[%clk 0:00:12.8]} 22... Kg8 {[%clk 0:01:43.7]} 23. Qf3 {[%clk 0:00:09.9]}
23... Qc6 {[%clk 0:01:19.7]} 24. Qf4 {[%clk 0:00:09]} 24... Re2 {[%clk
0:01:12.6]} 0-1

[Event "*** MasterClass Titled Tuesday Blitz"]
[Site "Chess.com"]
[Date "2017.12.12"]
[Round "6"]
[White "inegrepus"]
[Black "toad"]
[Result "0-1"]
[WhiteElo "2036"]
[BlackElo "2195"]
[TimeControl "180+2"]
[EndTime "14:22:35 PST"]
[Termination "toad won by resignation"]

1. d4 {[%clk 0:02:58.5]} 1... Nf6 {[%clk 0:03:00.6]} 2. c4 {[%clk 0:02:57.3]}
2... g6 {[%clk 0:03:01.8]} 3. Nc3 {[%clk 0:02:57.5]} 3... d5 {[%clk 0:03:02.9]}
4. Nf3 {[%clk 0:02:56.2]} 4... Bg7 {[%clk 0:03:03.7]} 5. Qb3 {[%clk 0:02:55.5]}
5... dxc4 {[%clk 0:03:03.6]} 6. Qxc4 {[%clk 0:02:53.7]} 6... O-O {[%clk
0:03:03.9]} 7. e4 {[%clk 0:02:27]} 7... a6 {[%clk 0:03:04.5]} 8. Be2 {[%clk
0:01:49]} 8... b5 {[%clk 0:03:05]} 9. Qb3 {[%clk 0:01:49.9]} 9... c5 {[%clk
0:02:57]} 10. dxc5 {[%clk 0:01:49.5]} 10... Qc7 {[%clk 0:02:56.6]} 11. O-O
{[%clk 0:01:38.6]} 11... Nbd7 {[%clk 0:02:57]} 12. Nd5 {[%clk 0:01:30.9]} 12...
Nxd5 {[%clk 0:02:54.7]} 13. exd5 {[%clk 0:01:28.1]} 13... Nxc5 {[%clk
0:02:55.3]} 14. Qc2 {[%clk 0:01:28.9]} 14... Bf5 {[%clk 0:02:50.1]} 15. Qd1
{[%clk 0:01:27.6]} 15... Rfd8 {[%clk 0:02:24.3]} 16. Be3 {[%clk 0:01:27.9]}
16... Na4 {[%clk 0:01:59.8]} 17. Rc1 {[%clk 0:01:27.4]} 17... Qb7 {[%clk
0:02:00.3]} 18. Rc6 {[%clk 0:01:14.9]} 18... Nxb2 {[%clk 0:01:55.2]} 19. Qb3
{[%clk 0:01:10.6]} 19... Be4 {[%clk 0:01:32.8]} 20. Rb6 {[%clk 0:00:49.4]} 20...
Qxd5 {[%clk 0:01:28.9]} 21. Qa3 {[%clk 0:00:47.6]} 21... Nc4 {[%clk 0:01:03.3]}
22. Bxc4 {[%clk 0:00:47.3]} 22... bxc4 {[%clk 0:01:04.2]} 23. Rxa6 {[%clk
0:00:42.6]} 23... Rxa6 {[%clk 0:01:04.5]} 24. Qxa6 {[%clk 0:00:43.2]} 24... c3
{[%clk 0:00:57]} 25. Ng5 {[%clk 0:00:25]} 25... Bd3 {[%clk 0:00:51.6]} 0-1

[Event "*** MasterClass Titled Tuesday Blitz"]
[Site "Chess.com"]
[Date "2017.12.12"]
[Round "6"]
[White "tteshan"]
[Black "dusanacns"]
[Result "0-1"]
[WhiteElo "2028"]
[BlackElo "2578"]
[TimeControl "180+2"]
[EndTime "14:23:18 PST"]
[Termination "dusanacns won by resignation"]

1. d4 {[%clk 0:03:00.9]} 1... g6 {[%clk 0:03:00.1]} 2. c4 {[%clk 0:03:02.3]}
2... Bg7 {[%clk 0:03:01.6]} 3. Nc3 {[%clk 0:03:03.9]} 3... Nf6 {[%clk 0:03:03]}
4. e4 {[%clk 0:03:05]} 4... O-O {[%clk 0:03:04.9]} 5. Be2 {[%clk 0:03:05.2]}
5... c6 {[%clk 0:03:06.1]} 6. Bg5 {[%clk 0:03:04.9]} 6... d5 {[%clk 0:03:07]} 7.
cxd5 {[%clk 0:03:04.1]} 7... cxd5 {[%clk 0:03:07.8]} 8. e5 {[%clk 0:03:05.3]}
8... Ne4 {[%clk 0:03:09.1]} 9. Nxe4 {[%clk 0:03:04.5]} 9... dxe4 {[%clk
0:03:06.9]} 10. Qd2 {[%clk 0:02:55.9]} 10... Nc6 {[%clk 0:03:02.8]} 11. Rd1
{[%clk 0:02:49.2]} 11... f6 {[%clk 0:03:01]} 12. exf6 {[%clk 0:02:38.1]} 12...
exf6 {[%clk 0:03:02.9]} 13. Bc4+ {[%clk 0:02:34.7]} 13... Kh8 {[%clk 0:03:03.5]}
14. Be3 {[%clk 0:02:34]} 14... f5 {[%clk 0:03:02.6]} 15. Ne2 {[%clk 0:02:35.4]}
15... Na5 {[%clk 0:02:58.4]} 16. b3 {[%clk 0:02:32]} 16... a6 {[%clk 0:02:48.6]}
17. O-O {[%clk 0:02:26.9]} 17... b5 {[%clk 0:02:49]} 18. Bg5 {[%clk 0:02:11.4]}
18... Qb6 {[%clk 0:02:32.3]} 19. Bd5 {[%clk 0:02:09.1]} 19... Ra7 {[%clk
0:02:33.7]} 20. b4 {[%clk 0:02:05.9]} 20... Nc4 {[%clk 0:02:33.7]} 21. Bxc4
{[%clk 0:02:05.6]} 21... bxc4 {[%clk 0:02:35.6]} 22. Rb1 {[%clk 0:01:54.3]}
22... Be6 {[%clk 0:02:28.3]} 23. d5 {[%clk 0:01:50.3]} 23... Bg8 {[%clk
0:02:29.4]} 24. Be3 {[%clk 0:01:51]} 24... Qb7 {[%clk 0:02:26.8]} 25. Bxa7
{[%clk 0:01:51.1]} 25... Qxa7 {[%clk 0:02:28.7]} 26. Rfd1 {[%clk 0:01:47.4]}
26... f4 {[%clk 0:02:16.4]} 27. Nxf4 {[%clk 0:01:35.5]} 27... c3 {[%clk
0:02:17.3]} 28. Qc1 {[%clk 0:01:02]} 28... c2 {[%clk 0:02:18.1]} 29. Nxg6+
{[%clk 0:01:00.3]} 29... hxg6 {[%clk 0:02:17.7]} 30. Qxc2 {[%clk 0:01:01.5]}
30... e3 {[%clk 0:02:10.1]} 31. fxe3 {[%clk 0:00:59.1]} 31... Qxe3+ {[%clk
0:02:11]} 32. Kh1 {[%clk 0:00:59.7]} 32... Qh6 {[%clk 0:01:52.8]} 33. Qe2 {[%clk
0:00:55.7]} 33... Rf5 {[%clk 0:01:40.8]} 34. Rb3 {[%clk 0:00:48.3]} 34... Rh5
{[%clk 0:01:40.5]} 35. h3 {[%clk 0:00:37.1]} 35... Bxd5 {[%clk 0:01:38.9]} 36.
Rxd5 {[%clk 0:00:24.4]} 36... Rxd5 {[%clk 0:01:38.7]} 37. Rf3 {[%clk 0:00:21.3]}
37... Kh7 {[%clk 0:01:34.1]} 38. Qc2 {[%clk 0:00:17.3]} 38... Rd2 {[%clk
0:01:31.7]} 39. Qb1 {[%clk 0:00:16.5]} 39... Qg5 {[%clk 0:01:29.6]} 40. Qf1
{[%clk 0:00:17]} 40... Qd5 {[%clk 0:01:29.1]} 41. Rf4 {[%clk 0:00:16.9]} 41...
Rd1 {[%clk 0:01:28.7]} 0-1

[Event "*** MasterClass Titled Tuesday Blitz"]
[Site "Chess.com"]
[Date "2017.12.12"]
[Round "6"]
[White "Kawhi_Leonard2"]
[Black "ristingho"]
[Result "0-1"]
[WhiteElo "2259"]
[BlackElo "2351"]
[TimeControl "180+2"]
[EndTime "14:23:20 PST"]
[Termination "ristingho won on time"]

1. e4 {[%clk 0:03:00.6]} 1... e6 {[%clk 0:02:57.2]} 2. d4 {[%clk 0:03:00.1]}
2... d5 {[%clk 0:02:46.2]} 3. Nd2 {[%clk 0:03:01.4]} 3... a6 {[%clk 0:02:44.3]}
4. Bd3 {[%clk 0:03:01]} 4... c5 {[%clk 0:02:44.6]} 5. dxc5 {[%clk 0:02:55.4]}
5... Bxc5 {[%clk 0:02:44.2]} 6. Ngf3 {[%clk 0:02:47.5]} 6... Nc6 {[%clk
0:02:44]} 7. c3 {[%clk 0:02:39.5]} 7... Nge7 {[%clk 0:02:41.6]} 8. O-O {[%clk
0:02:39.6]} 8... Qc7 {[%clk 0:02:41.7]} 9. Qc2 {[%clk 0:02:36.9]} 9... h6 {[%clk
0:02:37.3]} 10. Re1 {[%clk 0:02:35.8]} 10... O-O {[%clk 0:02:37.5]} 11. exd5
{[%clk 0:02:31]} 11... Nxd5 {[%clk 0:02:37.5]} 12. Ne4 {[%clk 0:02:31.5]} 12...
Be7 {[%clk 0:02:37.7]} 13. Bd2 {[%clk 0:02:25.2]} 13... b6 {[%clk 0:02:32]} 14.
Qc1 {[%clk 0:02:26.2]} 14... f5 {[%clk 0:02:31.2]} 15. Ng3 {[%clk 0:02:24.1]}
15... Bd7 {[%clk 0:02:25.3]} 16. Bxh6 {[%clk 0:02:17.1]} 16... gxh6 {[%clk
0:02:27.2]} 17. Qxh6 {[%clk 0:02:17.3]} 17... Rf7 {[%clk 0:02:24]} 18. Nh5
{[%clk 0:02:17.2]} 18... Rh7 {[%clk 0:02:10.5]} 19. Qg6+ {[%clk 0:02:16.4]}
19... Kh8 {[%clk 0:02:11.9]} 20. c4 {[%clk 0:00:34.9]} 20... Rg8 {[%clk
0:02:05.1]} 21. Qxh7+ {[%clk 0:00:35.7]} 21... Kxh7 {[%clk 0:02:05.7]} 22. cxd5
{[%clk 0:00:36.8]} 22... exd5 {[%clk 0:01:43.4]} 23. Rac1 {[%clk 0:00:37.8]}
23... Qd6 {[%clk 0:01:42.7]} 24. Ng3 {[%clk 0:00:28.4]} 24... Rf8 {[%clk
0:01:35.8]} 25. Rcd1 {[%clk 0:00:22.8]} 25... Kg8 {[%clk 0:01:28.6]} 26. Bxa6
{[%clk 0:00:23.5]} 26... f4 {[%clk 0:01:26]} 27. Ne2 {[%clk 0:00:21.3]} 27...
Bg4 {[%clk 0:01:24.4]} 28. Rd3 {[%clk 0:00:12.8]} 28... Nb4 {[%clk 0:01:23.5]}
29. Ra3 {[%clk 0:00:11]} 29... Nxa6 {[%clk 0:01:23.7]} 30. Rxa6 {[%clk
0:00:11.8]} 30... Bxf3 {[%clk 0:01:25.6]} 31. gxf3 {[%clk 0:00:11.5]} 31... Rf7
{[%clk 0:01:24.9]} 32. Rd1 {[%clk 0:00:11.3]} 32... Rg7+ {[%clk 0:01:25.1]} 33.
Kf1 {[%clk 0:00:12.4]} 33... Qg6 {[%clk 0:01:20.3]} 34. Nc3 {[%clk 0:00:13.3]}
34... Bc5 {[%clk 0:01:19.1]} 35. Ra8+ {[%clk 0:00:10.7]} 35... Kh7 {[%clk
0:01:19.4]} 36. Rxd5 {[%clk 0:00:06.4]} 36... Qg2+ {[%clk 0:01:18.4]} 37. Ke1
{[%clk 0:00:08]} 37... Re7+ {[%clk 0:01:16.5]} 38. Kd1 {[%clk 0:00:08]} 38...
Qxf2 {[%clk 0:01:11.8]} 0-1